[Event "37th ECCC 2022"]
[Site "Mayrhofen"]
[Date "2022.10.05"]
[Round "3.31"]
[White "Kuzubov, Yuriy"]
[Black "Boruchovsky, Avital"]
[Result "1/2-1/2"]
[ECO "D41"]
[WhiteElo "2612"]
[BlackElo "2548"]
[Annotator "TA"]
[PlyCount "101"]
[EventDate "2022.10.03"]
[EventType "team-tourn"]
[EventCountry "AUT"]
[SourceTitle "playchess.com"]
[Source "ChessBase"]
[SourceQuality "1"]
[TimeControl "40/5400+30:1800+30"]

{[%evp 11,101,35,24,22,27,18,31,27,34,30,25,22,25,39,32,34,56,15,12,6,14,0,1,0,32,52,67,18,10,11,11,12,12,10,17,12,17,0,7,0,0,4,8,8,11,0,0,0,0,0,0,0,0,0,8,0,16,20,27,21,29,0,5,0,7,8,7,7,45,4,10,0,0,0,0,0,0,0,0,0,0,0,0,0,0,0,0,0,0,0,0,0]} 1. d4 {[%emt 0:00:03]} Nf6 {[%emt 0:00:11]} 2. c4 {[%emt 0:00:06]} e6 {[%emt 0:00:03]} 3. Nf3 {[%emt 0:00:05]} d5 {[%emt 0:00:05]} 4. Nc3 {[%emt 0:00:07]} c5 {[%emt 0:00:11]} 5. cxd5 {[%emt 0:00:12]} cxd4 {[%emt 0:00:06]} 6. Qxd4 {[%emt 0:00:58]} exd5 {[%emt 0:00:06]} 7. e4 {[%emt 0:00:07] D41: Queen's Gambit Declined: Semi-Tarrasch with 5 cxd5.} dxe4 {[%emt 0:00:07]} 8. Qxd8+ {[%emt 0:00:05]} Kxd8 {[%emt 0:00:06]} 9. Ng5 {[%emt 0:00:07][%csl LRe4,LRf7] White is slightly better.} Be6 {[%emt 0:00:07]} 10. Nxe6+ {[%emt 0:00:39]} fxe6 {[%emt 0:00:06]} 11. Bg5 {[%emt 0:00:20]} Nc6 {[%emt 0:00:37] 11...h6 is the modern continuation.} 12. Bc4 {[%emt 0:00:19]} Ke7 {[%emt 0:01:09]} 13. Nxe4 {[%emt 0:00:07]} Kf7 {[%emt 0:00:05]} 14. Nd2 {[%emt 0:00:31]} (14. Bxf6 $5 gxf6 15. O-O-O $14) 14... h6 {[%emt 0:11:06] [#]} 15. Be3 $146 {[%emt 0:00:41]} ({Predecessor:} 15. Bf4 Rd8 16. O-O-O Bd6 17. Be3 Nd5 18. Rhe1 Ne5 19. Bxd5 exd5 20. Kb1 Nc6 21. Nb3 {1-0 (48) Mamedyarov,S (2759)-Ding,L (2806) chess24.com INT 2022}) 15... Bd6 {[%emt 0:11:22]} 16. O-O-O {[%emt 0:01:47]} Rhd8 {[%emt 0:09:45]} 17. Kb1 {[%emt 0:08:10]} Ne5 {[%emt 0:12:26][%cal Bc6e5,Be5g4,Bg4e3][%mdl 32]} 18. Bb3 {[%emt 0:01:43]} Neg4 {[%emt 0:02:51]} 19. Nc4 {[%emt 0:09:27]} (19. Bd4 $1 $14) 19... Nxe3 $11 {[%emt 0:02:56]} 20. Nxd6+ {[%emt 0:00:50]} Ke7 {[%emt 0:00:37]} 21. Rde1 {[%emt 0:01:06]} Rxd6 {[%emt 0:03:15]} 22. Rxe3 {[%emt 0:00:05]} Rc8 {[%emt 0:04:55]} 23. Rhe1 {[%emt 0:01:58][%cal Rb3e6]} Rcc6 {[%emt 0:00:07]} 24. h4 {[%emt 0:03:10]} Nd5 {[%emt 0:04:48]} 25. Rg3 {[%emt 0:00:25]} Kf7 {[%emt 0:02:59]} 26. a3 {[%emt 0:01:25]} b5 {[%emt 0:00:54]} 27. Rf3+ {[%emt 0:08:34]} Ke7 {[%emt 0:00:33]} 28. Rd3 {[%emt 0:11:54]} Nf4 {[%emt 0:06:29][%csl LRd3,LRg2]} 29. Rxd6 {[%emt 0:10:18]} Rxd6 {[%emt 0:00:16][%mdl 4096] Endgame KRB-KRN} 30. g3 {[%emt 0:00:07]} Nd3 {[%emt 0:00:52][%csl LRe1,LRf2]} 31. Re2 {[%emt 0:00:10]} Nc5 {[%emt 0:06:10]} 32. Bc2 {[%emt 0:00:11]} Kf6 {[%emt 0:00:47]} 33. Re3 {[%emt 0:01:27]} e5 {[%emt 0:08:01]} 34. Rf3+ {[%emt 0:05:55]} Ke7 $1 {[%emt 0:00:08]} 35. Rc3 {[%emt 0:01:19]} Ne6 {[%emt 0:00:23]} 36. Be4 {[%emt 0:00:10]} (36. Re3 $5 {[%cal Re3e5]}) 36... a5 {[%emt 0:02:29]} 37. Kc2 {[%emt 0:02:31]} g5 {[%emt 0:02:28]} 38. hxg5 {[%emt 0:05:13]} hxg5 {[%emt 0:00:05]} 39. Rc8 {[%emt 0:00:46]} Kf6 {[%emt 0:08:03]} 40. g4 {[%emt 0:05:46]} Nd4+ {[%emt 0:01:46] The position is equal.} 41. Kd3 {[%emt 0:33:40]} Ne6+ {[%emt 0:07:35]} 42. Ke3 {[%emt 0:00:00]} Rd1 $1 {[%emt 0:00:25] [#] And now ...Re1+ would win.} 43. f3 {[%emt 0:00:00]} Re1+ {[%emt 0:06:03]} 44. Kd2 {[%emt 0:00:00]} Rg1 {[%emt 0:00:51]} 45. Rc6 {[%emt 0:07:44]} Ke7 {[%emt 0:00:15]} 46. Rb6 {[%emt 0:04:59]} Rg2+ {[%emt 0:03:47]} 47. Kc3 {[%emt 0:00:30]} Nd4 {[%emt 0:00:03]} 48. b4 {[%emt 0:02:31]} Ne2+ {[%emt 0:04:54]} 49. Kd2 {[%emt 0:01:38]} Nd4+ {[%emt 0:01:47]} 50. Kc3 {[%emt 0:00:05]} Ne2+ {[%emt 0:03:50]} 51. Kd2 {[%emt 0:00:03] Weighted Error Value: White=0.06 (flawless) /Black=0.04 (flawless)} 1/2-1/2

[Event "37th ECCC 2022"]
[Site "Mayrhofen"]
[Date "2022.10.05"]
[Round "3.32"]
[White "Erenberg, Ariel"]
[Black "Fedorchuk, Sergey A."]
[Result "0-1"]
[ECO "A05"]
[WhiteElo "2516"]
[BlackElo "2619"]
[Annotator "TA"]
[PlyCount "98"]
[EventDate "2022.10.03"]
[EventType "team-tourn"]
[EventCountry "AUT"]
[SourceTitle "playchess.com"]
[Source "ChessBase"]
[SourceQuality "1"]
[TimeControl "40/5400+30:1800+30"]

{[%evp 18,98,27,31,30,28,24,41,26,21,25,35,33,22,37,39,45,27,29,35,25,20,30,22,73,51,56,30,20,0,0,0,27,6,31,37,24,20,46,22,32,0,0,0,-15,-27,-23,-19,-25,-14,-22,-16,0,0,-6,0,-9,0,81,-184,-194,-279,-275,-377,-366,-594,-604,-604,-604,-600,-589,-450,-447,-666,-618,-885,-254,-287,-254,-570,-313,-428,-402]} 1. Nf3 {[%emt 0:00:13]} Nf6 {[%emt 0:00:42]} 2. g3 {[%emt 0:00:22]} b6 {[%emt 0:01:55]} 3. Bg2 {[%emt 0:00:46]} Bb7 {[%emt 0:00:09]} 4. O-O {[%emt 0:00:56]} c5 {[%emt 0:01:47]} 5. c4 {[%emt 0:01:06]} g6 {[%emt 0:00:48]} 6. d4 {[%emt 0:05:31]} cxd4 {[%emt 0:00:29]} 7. Qxd4 {[%emt 0:00:04]} Bg7 {[%emt 0:00:19]} 8. Nc3 {[%emt 0:01:03]} d6 {[%emt 0:00:40]} 9. Rd1 {[%emt 0:05:35]} Nbd7 {[%emt 0:00:34]} 10. Be3 {[%emt 0:00:05]} a6 {[%emt 0:07:13] A30: Symmetrical English: Double Fianchetto and Hedgehog.} 11. Rac1 {[%emt 0:07:23]} Rc8 {[%emt 0:01:42]} 12. b3 {[%emt 0:01:49]} O-O {[%emt 0:00:21][%cal Of6d5] White is slightly better.} 13. Qh4 {[%emt 0:02:09]} Re8 {[%emt 0:00:29]} 14. Bh3 {[%emt 0:11:26]} Rb8 {[%emt 0:11:36]} 15. g4 {[%emt 0:08:05][%cal Bg3g4,Bg4g5][%mdl 32]} Nf8 {[%emt 0:04:02] [#]} 16. g5 $146 {[%emt 0:03:17]} ({Predecessor:} 16. Nd5 Ba8 17. g5 Nxd5 18. cxd5 e6 19. dxe6 Nxe6 20. Qg3 d5 21. Rc2 Qe7 22. Bxe6 Qxe6 {0-1 (38) Le,T (2318)-Zhao,X (2490) China 2010}) 16... N6d7 {[%emt 0:00:06][%cal Ob6b5]} 17. Nd5 {[%emt 0:05:27]} e6 {[%emt 0:09:59]} 18. Nc3 {[%emt 0:02:08]} Qe7 {[%emt 0:02:37]} 19. Ne4 {[%emt 0:05:26]} Bxe4 {[%emt 0:07:05]} 20. Qxe4 {[%emt 0:00:21]} b5 {[%emt 0:00:23]} (20... Nc5 $11 {keeps the balance.} 21. Qh4 a5) 21. Qc6 {[%emt 0:09:11]} bxc4 {[%emt 0:00:09]} 22. bxc4 {[%emt 0:00:05]} Bb2 {[%emt 0:01:40]} 23. Rc2 {[%emt 0:04:52]} (23. Rxd6 $2 Bxc1 24. Bxc1 Rec8 25. Rxd7 (25. Qxa6 $2 Nc5 $19) 25... Qxd7 $19) (23. Qxd6 $2 Qxd6 24. Rxd6 Bxc1 25. Bxc1 Rb1 $19) 23... Ba3 {[%emt 0:03:23]} 24. Qxa6 {[%emt 0:00:12]} Ra8 {[%emt 0:01:48]} 25. Qc6 {[%emt 0:02:43]} Rec8 {[%emt 0:00:12]} 26. Qe4 {[%emt 0:00:13]} Ra4 {[%emt 0:04:02][%cal Od6d5]} 27. Qd3 {[%emt 0:12:07] Prevents d5.} Qd8 {[%emt 0:02:42]} 28. Bf4 {[%emt 0:05:25]} d5 {[%emt 0:02:33]} 29. Nd2 {[%emt 0:05:49]} (29. e3 $5 {[%cal Rc4d5]} Rcxc4 30. Rxc4 dxc4 31. Qc2 $11) 29... Be7 {[%emt 0:04:53]} 30. Bg3 {[%emt 0:00:36]} (30. e3 $5 {[%cal Rc4d5]}) 30... Ra3 {[%emt 0:03:03]} 31. Rc3 {[%emt 0:00:21]} Nc5 {[%emt 0:07:45]} 32. Qc2 {[%emt 0:00:14]} Rxc3 {[%emt 0:00:06]} 33. Qxc3 {[%emt 0:00:01]} Bxg5 {[%emt 0:00:10]} 34. e3 {[%emt 0:00:54]} Bf6 {[%emt 0:15:09]} 35. Qc2 {[%emt 0:00:02]} h5 {[%emt 0:00:03][%cal Bh7h5,Bh5h4][%mdl 32] And now ...h4 would win.} 36. cxd5 {[%emt 0:00:45]} h4 {[%emt 0:00:02]} 37. Bf4 {[%emt 0:00:52]} g5 {[%emt 0:00:03] [#]} (37... Qxd5 $11 {remains equal.} 38. Bg4 g5) 38. dxe6 $2 {[%emt 0:01:12][%mdl 8192] Now White is beyond hope.} (38. Nc4 $1 $16 exd5 39. Bd6 (39. Bxc8 Qxc8 40. Rxd5 gxf4 $11)) 38... Ncxe6 $19 {[%emt 0:00:31] Pair of Knights!} 39. Qb3 {[%emt 0:00:37]} (39. Qf5 {keeps fighting.} gxf4 40. Qg4+ Bg7 41. Ne4) 39... Rc3 {[%emt 0:00:26]} 40. Qa4 {[%emt 0:00:33]} Rd3 {[%emt 0:00:20]} ({And not} 40... gxf4 41. Ne4 Qe7 42. Nxc3 Bxc3 43. exf4 $11) ({Avoid the trap} 40... Nxf4 $2 41. Bf1 Nh3+ 42. Bxh3 $19) 41. Bf1 $2 {[%emt 0:04:31]} (41. Bb8 {might work better.}) 41... Rxd2 {[%emt 0:01:02]} (41... gxf4 42. Bxd3 Qxd3 43. Ne4 $14) 42. Rxd2 {[%emt 0:00:04]} Qxd2 {[%emt 0:00:09]} 43. Bb8 {[%emt 0:00:05]} Nd7 {[%emt 0:00:48]} 44. Qb5 {[%emt 0:00:19]} Kg7 {[%emt 0:05:51]} 45. a4 {[%emt 0:00:10]} (45. h3 $142) 45... Nxb8 {[%emt 0:09:04]} 46. Qxb8 {[%emt 0:00:02]} Qa5 {[%emt 0:07:27]} (46... g4 {...Ng5 is the strong threat.} 47. Qb5 Ng5) 47. Qe8 {[%emt 0:00:47]} Qb4 {[%emt 0:04:12] [#] Threatens to win with ...Qg4+.} 48. Qa8 $2 {[%emt 0:03:44]} (48. h3) 48... Qg4+ {[%emt 0:00:30]} 49. Kh1 {[%emt 0:00:18]} Nc5 {[%emt 0:00:27] Weighted Error Value: White=0.51/Black=0.29 (precise)} 0-1

[Event "37th ECCC 2022"]
[Site "Mayrhofen"]
[Date "2022.10.05"]
[Round "3.33"]
[White "Wagner, Dennis"]
[Black "Gorshtein, Ido"]
[Result "1-0"]
[ECO "E49"]
[WhiteElo "2570"]
[BlackElo "2471"]
[Annotator "TA"]
[PlyCount "69"]
[EventDate "2022.10.03"]
[EventType "team-tourn"]
[EventCountry "AUT"]
[SourceTitle "playchess.com"]
[Source "ChessBase"]
[SourceQuality "1"]
[TimeControl "40/5400+30:1800+30"]

{[%evp 19,69,-13,-14,-7,0,-1,12,0,27,9,18,23,10,37,46,26,58,68,51,47,49,50,62,42,47,59,55,54,77,35,46,58,77,68,56,58,76,64,99,92,107,33,126,127,130,131,247,259,733,441,606,602]} 1. d4 {[%emt 0:00:03]} Nf6 {[%emt 0:00:07]} 2. c4 {[%emt 0:00:04]} e6 {[%emt 0:00:05]} 3. Nc3 {[%emt 0:00:05]} Bb4 {[%emt 0:00:09]} 4. e3 {[%emt 0:00:05]} O-O {[%emt 0:00:34]} 5. Bd3 {[%emt 0:00:09]} d5 {[%emt 0:03:12]} 6. a3 {[%emt 0:00:09]} Bxc3+ {[%emt 0:00:08]} 7. bxc3 {[%emt 0:00:03]} dxc4 {[%emt 0:00:20]} 8. Bxc4 {[%emt 0:00:04]} c5 {[%emt 0:00:14]} 9. Ne2 {[%emt 0:00:12]} Qc7 {[%emt 0:01:24]} 10. Bd3 {[%emt 0:00:12]} Nc6 {[%emt 0:01:38]} 11. O-O {[%emt 0:00:16] E49: Nimzo-Indian: Rubinstein: 5 Bd3 d5 6 a3 Bxc3+ 7 bxc3.} e5 {[%emt 0:03:47]} ({Resist} 11... Ng4 12. Nf4 Nf6 13. Nh5 $14 (13. dxc5 Ne5 $11)) (11... c4 12. Bxc4 e5 13. Bd3 $16) 12. Ng3 {[%emt 0:00:09] 12.e4 is a critical line.} Re8 {[%emt 0:03:41]} 13. Qc2 {[%emt 0:01:03] The position is equal.} h6 {[%emt 0:04:43] [#]} 14. f4 $146 {[%emt 0:24:41]} ({Predecessor:} 14. Bb2 Qe7 15. Rad1 Be6 16. Bb5 cxd4 17. cxd4 exd4 18. Bxc6 bxc6 19. Bxd4 Rec8 20. Bc5 {1-0 (47) Sarana,A (2668)-Swiercz,D (2652) Chess.com INT 2022}) 14... exd4 {[%emt 0:25:54]} 15. cxd4 {[%emt 0:00:13]} cxd4 {[%emt 0:00:05]} 16. e4 {[%emt 0:00:05][%cal Be3e4,Be4e5][%mdl 32]} Ng4 {[%emt 0:01:31]} 17. Qe2 {[%emt 0:31:10]} Bd7 {[%emt 0:16:50]} 18. e5 {[%emt 0:02:24]} Ne3 {[%emt 0:03:54]} 19. Bxe3 {[%emt 0:00:16]} dxe3 {[%emt 0:00:04]} 20. Rab1 {[%emt 0:11:31]} Ne7 {[%emt 0:13:51]} 21. Qxe3 {[%emt 0:02:26]} Rad8 {[%emt 0:03:36]} 22. Qxa7 {[%emt 0:11:46]} Bc6 {[%emt 0:00:56]} 23. Be4 {[%emt 0:01:16]} Rd2 {[%emt 0:03:30]} 24. Rf2 {[%emt 0:07:11]} Rxf2 {[%emt 0:01:49]} 25. Qxf2 {[%emt 0:00:04]} (25. Kxf2 $2 {loses.} Bxe4 26. Re1 Bd3 $19) 25... Rd8 {[%emt 0:00:54]} 26. Qc5 {[%emt 0:02:52]} Qd7 {[%emt 0:01:14]} 27. Bxc6 {[%emt 0:01:33]} Nxc6 {[%emt 0:00:34]} 28. Qe3 {[%emt 0:01:56] White is more active.} Qe6 {[%emt 0:04:48] [#]} 29. h3 $1 {[%emt 0:01:22]} Qc4 {[%emt 0:01:33]} 30. Rc1 {[%emt 0:00:29]} (30. Rxb7 $16 {And now Rc7 would win.} Rd1+ 31. Kh2) 30... Qa6 {[%emt 0:02:11] [#]} (30... Rd3 $14 31. Rxc4 Rxe3) 31. Rc3 $1 $16 {[%emt 0:00:14]} Ne7 {[%emt 0:00:30]} 32. Kh2 {[%emt 0:00:32]} Nd5 {[%emt 0:01:21]} (32... Qe6 $16 33. Qe4 b6) 33. Qd4 $18 {[%emt 0:00:23]} Nxc3 $2 {[%emt 0:00:28]} (33... Qb6 34. Qxb6 Nxb6) 34. Qxd8+ {[%emt 0:00:04]} Kh7 {[%emt 0:00:06]} 35. Qc7 {[%emt 0:01:42][%csl LRc3,LRf7] Against Qc4.  Weighted Error Value: White=0.09 (flawless) /Black=0.19 (very precise)} 1-0

[Event "37th ECCC 2022"]
[Site "Mayrhofen"]
[Date "2022.10.05"]
[Round "3.34"]
[White "Rozen, Eytan"]
[Black "Maze, Sebastien"]
[Result "1/2-1/2"]
[ECO "E73"]
[WhiteElo "2462"]
[BlackElo "2530"]
[Annotator "TA"]
[PlyCount "63"]
[EventDate "2022.10.03"]
[EventType "team-tourn"]
[EventCountry "AUT"]
[SourceTitle "playchess.com"]
[Source "ChessBase"]
[SourceQuality "1"]
[TimeControl "40/5400+30:1800+30"]

{[%evp 21,63,50,62,58,90,85,115,98,112,114,114,87,117,117,117,113,112,109,106,106,115,106,115,115,122,122,130,65,110,93,93,45,93,48,66,68,71,71,93,0,93,0,96,0]} 1. d4 {[%emt 0:00:14]} Nf6 {[%emt 0:00:12]} 2. c4 {[%emt 0:00:05]} g6 {[%emt 0:00:10]} 3. Nc3 {[%emt 0:00:05]} Bg7 {[%emt 0:00:04]} 4. e4 {[%emt 0:00:05]} d6 {[%emt 0:00:03]} 5. Be2 {[%emt 0:00:05]} O-O {[%emt 0:08:33]} 6. Be3 {[%emt 0:01:24]} Nbd7 {[%emt 0:01:23]} 7. Nf3 {[%emt 0:00:11]} e5 {[%emt 0:00:30]} 8. d5 {[%emt 0:00:08]} Ng4 {[%emt 0:04:09]} 9. Bg5 {[%emt 0:00:28][%cal Be3g5,Bg5h4,Bh4f2][%mdl 32]} f6 {[%emt 0:00:17]} 10. Bh4 {[%emt 0:00:42]} h5 {[%emt 0:04:16]} 11. Nd2 {[%emt 0:00:39]} Nh6 {[%emt 0:00:04]} 12. f3 {[%emt 0:01:05] E93: King's Indian: Classical: Petrosian System with 7...Nbd7.} Nf7 {[%emt 0:01:42]} 13. Qc2 {[%emt 0:01:47]} Bh6 {[%emt 0:00:45]} 14. Bf2 {[%emt 0:00:02] Prevents Be3.} a5 {[%emt 0:01:02]} 15. O-O-O {[%emt 0:04:49]} Nc5 {[%emt 0:00:54]} 16. Kb1 {[%emt 0:00:02]} Bd7 {[%emt 0:01:46] [#]} 17. h4 $146 {[%emt 0:01:06][%cal Bh2h4,Bh4h5][%mdl 32]} ({Predecessor:} 17. b3 b6 18. Nb5 Na6 19. a3 Nc5 20. Ka2 Qc8 21. Bh4 {½-½ (21) Georgescu,T (2460)-Nevednichy,V (2541) Calimanesti Caciulata 2016}) 17... Kg7 {[%emt 0:08:03]} 18. Nf1 {[%emt 0:04:53]} (18. g4 {feels hotter.} hxg4 19. fxg4 Bf4 20. h5) 18... Rh8 {[%emt 0:01:54]} 19. g4 {[%emt 0:03:41]} hxg4 {[%emt 0:00:08]} 20. fxg4 {[%emt 0:00:17]} Bf4 {[%emt 0:00:02]} 21. h5 {[%emt 0:05:42]} g5 {[%emt 0:04:17]} 22. Ne3 {[%emt 0:01:47]} Nh6 {[%emt 0:01:07]} 23. Nf5+ {[%emt 0:05:34]} Nxf5 {[%emt 0:00:04]} 24. gxf5 {[%emt 0:01:21]} ({Better is} 24. exf5 $16 {aiming for Bxc5.} b6 25. b3) 24... Kh6 {[%emt 0:02:52]} 25. Nb5 {[%emt 0:07:11]} b6 {[%emt 0:01:46]} 26. b3 {[%emt 0:03:29]} (26. Rdg1 $16) 26... Rg8 {[%emt 0:01:08]} (26... Kg7 $14) 27. Rhg1 {[%emt 0:01:37]} Qc8 {[%emt 0:00:27][%cal Oc5e4] [#] White must now prevent ...Nxe4!} 28. Bg4 {[%emt 0:06:08]} Na6 {[%emt 0:01:44][%cal Oa5a4]} 29. Qc3 {[%emt 0:03:21] White is much more active.} Nc5 {[%emt 0:00:25]} 30. Qc2 {[%emt 0:01:25]} Na6 $1 {[%emt 0:00:04][%cal Oa5a4]} 31. Qc3 {[%emt 0:01:10]} Nc5 $1 {[%emt 0:00:04]} 32. Qc2 {Weighted Error Value: White=0.26 (precise) /Black=0.11 (very precise)} (32. Qf3 $16) 1/2-1/2

[Event "37th ECCC 2022"]
[Site "Mayrhofen"]
[Date "2022.10.05"]
[Round "3.35"]
[White "Libiszewski, Fabien"]
[Black "Mindlin, Alon"]
[Result "0-1"]
[ECO "C84"]
[WhiteElo "2512"]
[BlackElo "2426"]
[Annotator "TA"]
[PlyCount "60"]
[EventDate "2022.10.03"]
[EventType "team-tourn"]
[EventCountry "AUT"]
[SourceTitle "playchess.com"]
[Source "ChessBase"]
[SourceQuality "1"]
[TimeControl "40/5400+30:1800+30"]

{[%evp 18,60,14,7,16,5,7,3,10,6,7,21,10,0,0,24,82,91,93,0,0,0,0,-429,-415,-521,-516,-661,-605,-653,-587,-664,-656,-634,-647,-645,-627,-1560,-1533,-1540,-1506,-1685,-1653,-2561,-1802]} 1. e4 {[%emt 0:00:04]} e5 {[%emt 0:00:16]} 2. Nf3 {[%emt 0:00:13]} Nc6 {[%emt 0:00:08]} 3. Bb5 {[%emt 0:00:19][%cal Bf1b5,Bb5a4,Ba4b3][%mdl 32]} a6 {[%emt 0:00:07]} 4. Ba4 {[%emt 0:00:05]} Nf6 {[%emt 0:00:07]} 5. O-O {[%emt 0:00:19]} Be7 {[%emt 0:00:10]} 6. d3 {[%emt 0:00:29]} b5 {[%emt 0:00:09]} 7. Bb3 {[%emt 0:00:04]} d6 {[%emt 0:00:09]} 8. a4 b4 9. a5 {[%emt 0:01:22] 9.Nbd2 is more advanced technology.} O-O {[%emt 0:02:59]} 10. Nbd2 {[%emt 0:00:31]} Be6 {[%emt 0:01:22] C84: Closed Ruy Lopez: Unusual White 6th moves.} 11. Nc4 {[%emt 0:04:05]} Rb8 {[%emt 0:13:56] is the legacy move (11...Nd7).} 12. Be3 {has lost popularity (12.c3).} h6 {[%emt 0:03:58] The position is equal.} 13. h3 {[%emt 0:08:19]} Qc8 {[%emt 0:05:11]} 14. Nfd2 {[%emt 0:08:08]} d5 15. Ba4 dxc4 {[%emt 0:05:35]} 16. Bxc6 {[%emt 0:01:54]} cxd3 {[%emt 0:11:23]} (16... b3 $11) 17. cxd3 $16 {[%emt 0:13:16]} Bd7 {[#]} 18. Qa4 $146 (18. Rc1 $16) ({Predecessor:} 18. Bxd7 Qxd7 19. Nc4 Rb5 20. Qe2 Rd8 21. Rad1 Qe6 22. f4 exf4 23. Bxf4 Rd7 24. Kh1 {1-0 (52) Navara,D (2697)-Mista,A (2574) Poland 2013}) 18... Bxh3 $11 {[%emt 0:16:01]} 19. gxh3 {[%emt 0:02:11]} Qxh3 {[%emt 0:00:06]} 20. Rfe1 $2 {[%emt 0:36:40][%mdl 8192]} (20. Qd1 $1 $11 {and White has nothing to worry.} Ng4 21. Re1) 20... b3 $1 $19 {[%emt 0:06:12]} ({Worse is} 20... Ng4 21. Nf1 $11) 21. Qc4 {[%emt 0:02:53]} Ng4 {[%emt 0:02:21] Black is clearly winning.} 22. Nf1 {[%emt 0:05:41] [#]} Rbd8 {[%emt 0:00:52] Against Bd7} 23. f4 {[%emt 0:03:16]} exf4 {[%emt 0:01:39]} 24. Bxf4 {[%emt 0:00:01] [#]} Bh4 $1 {[%emt 0:00:00][%csl Gg4][%cal Be7h4,Bh4f2,Bf2d4][%mdl 32]} ({Inferior is} 24... Rxd3 25. e5 $11) 25. Re2 {Prevents Bf2+. Strongly threatening e5.} Qf3 26. Rg2 {[%emt 0:05:25][%cal Of1h2]} Qxf4 {[%emt 0:01:29]} 27. Qxa6 {[%emt 0:00:39]} Bf2+ {[%emt 0:03:07]} 28. Kh1 {[%emt 0:00:07]} Bd4 29. Rg3 {[%emt 0:01:42]} Rd6 {[%emt 0:04:02] ( -> ...Nf2+)} 30. Qb7 {[%emt 0:02:44]} Ne3 {[%emt 0:01:14] Weighted Error Value: White=1.59/Black=0.09 (flawless)} 0-1